[Event "44th Chess Olympiad Open 2022"]
[Site "Chennai"]
[Date "2022.07.29"]
[Round "1.16"]
[White "Ajak Mach Duany"]
[Black "Gupta, Abhijeet"]
[Result "0-1"]
[WhiteElo "2029"]
[BlackElo "2627"]
[Annotator "TA"]
[PlyCount "101"]
[EventDate "2022.??.??"]
[TimeControl "60"]

{[%evp 9,101,0,8,-1,2,16,50,54,63,-97,-92,-95,-97,-96,-96,-101,-98,-94,-92,-81,
-73,-64,-83,-76,-77,-102,-67,-160,-105,-108,-90,-82,-82,-79,-57,-129,-121,-147,
-55,-152,-60,-130,-137,-115,-114,-121,-124,-132,-125,-233,-206,-244,-241,-226,
-237,-237,-227,-256,-228,-260,-251,-645,-614,-6527,-5493,-29962,-29966,-29962,
-29962,-29959,-29960,-29968,-29969,-29967,-5608,-29975,-29976,-29979,-29979,
-29982,-29982,-29977,-29978,-29978,-29979,-29983,-29984,-29983,-29984,-29984,
-29985,-29985,-29986,-29988]} 1. e4 {[%emt 0:00:09]} c5 {[%emt 0:00:19]} 2. Nc3
{[%emt 0:00:22]} Nc6 {[%emt 0:02:00]} 3. Bb5 {[%emt 0:00:32]} Nd4 {[%emt 0:00:
00]} 4. Bc4 {[%emt 0:00:14]} e6 {[%emt 0:00:20]} 5. Nge2 {[%emt 0:00:17]} a6 {
[%emt 0:01:41]} 6. a4 {[%emt 0:01:52] Inhibits b5. B23: Closed Sicilian: Lines
without g3.} Ne7 {[%emt 0:02:37][%cal Yg8e7,Ye7d5,Yd5f4]} 7. O-O {[%emt 0:00:
50]} d5 $5 {[%emt 0:11:04] Exploring less charted territory.} 8. exd5 {[%emt 0:
00:34] White is slightly better.} exd5 {[%emt 0:00:03]} 9. Nxd5 {[%emt 0:32:50]
} Nxd5 $17 {[%emt 0:02:43]} 10. Nxd4 {[%emt 0:03:00]} cxd4 {[%emt 0:00:10]} 11.
Qh5 {[%emt 0:00:13]} Be6 {[%emt 0:00:13]} 12. Re1 {[%emt 0:00:13][%csl Yd5,Ye6]
[#]} Be7 $1 {[%emt 0:00:41] aiming for ...Nf6.} 13. Rxe6 {[%emt 0:02:04]} Nf4
$1 {[%emt 0:00:40][%csl Ye6,Yh5]} 14. Rxe7+ {[%emt 0:03:01]} Qxe7 {[%emt 0:00:
04]} 15. Qf3 {[%emt 0:02:06]} Ng6 {[%emt 0:00:00] [#] Strongly threatening ...
Ne5.} 16. Qa3 $146 {[%emt 0:05:08]} ({Predecessor:} 16. b3 Ne5 17. Qd1 Nxc4 18.
bxc4 f6 19. Ba3 Qd7 20. d3 Kf7 21. Rb1 Rhe8 22. g3 Kg8 23. Qf3 Qc6 24. Qf4 Re2
{0-1 (24) Tay,J (2230)-Sharapov,E (2368) Chess.com INT 2017}) 16... Qxa3 {
[%emt 0:09:28]} 17. Rxa3 {[%emt 0:00:00]} O-O {[%emt 0:00:05] And now ...Rae8
would win.} 18. Ra1 {[%emt 0:09:05]} (18. d3 $15) 18... b5 {[%emt 0:01:47]} (
18... Rfe8 $142 19. Kf1 b5) 19. Bf1 {[%emt 0:01:31]} ({Don't blunder} 19. axb5
$2 axb5 20. Ba2 (20. Rxa8 $2 Rxa8 21. Bd3 Ra1 $19) 20... Ra7 $19) 19... Rac8 {
[%emt 0:01:42]} 20. c3 {[%emt 0:07:55]} Rfe8 {[%emt 0:06:34]} 21. f3 {[%emt 0:
01:01]} Nf4 {[%emt 0:02:14]} 22. axb5 {[%emt 0:02:36]} ({Better is} 22. Kf2 $1
$15) 22... axb5 {[%emt 0:00:12]} 23. Kf2 {[%emt 0:02:08]} d3 {[%emt 0:00:59]} (
23... Ra8 $17 24. Rb1 (24. Rxa8 $2 Rxa8 25. d3 dxc3 $19) 24... d3) 24. b3 {
[%emt 0:01:35] [#]} (24. g3 $15 Ne2 25. b4) 24... g5 {[%emt 0:05:12] 0x0.
0016804bca2bdp-1022s more active pieces.} (24... b4 $1 $17 25. c4 Ra8 26. Rxa8
Rxa8) 25. Bb2 {[%emt 0:01:45] [#]} (25. g3 $15 Ne2 26. Bb2) 25... Re2+ $1 {
[%emt 0:03:38]} 26. Bxe2 {[%emt 0:00:00]} dxe2 {[%emt 0:00:10] Endgame KRB-KRN}
27. g3 {[%emt 0:00:22]} Nd3+ {[%emt 0:00:04]} 28. Kxe2 {[%emt 0:00:19]} Nxb2 {
[%emt 0:00:04] KRN-KR} 29. Ra5 {[%emt 0:00:53]} (29. Ke3 $17 {was worth a try.}
) 29... Re8+ $19 {[%emt 0:00:55]} 30. Kf1 {[%emt 0:00:13]} Nd3 {[%emt 0:01:52]}
31. Rxb5 {[%emt 0:00:14]} Re1+ {[%emt 0:01:04]} 32. Kg2 {[%emt 0:00:15]} Re2+ {
[%emt 0:00:00]} 33. Kg1 {[%emt 0:01:58]} f6 {[%emt 0:00:50]} ({And not} 33...
Rxd2 34. Rxg5+ Kf8 35. Rh5 $17) 34. c4 {[%emt 0:02:48]} Rxd2 {[%emt 0:01:06]}
35. Rd5 $2 {[%emt 0:03:02] [#]} (35. h4) 35... Ne5 $1 {[%emt 0:00:45]} 36. Rxd2
{[%emt 0:00:00]} (36. Kf1 Nxf3) 36... Nxf3+ {[%emt 0:00:03]} 37. Kg2 {[%emt 0:
00:40]} Nxd2 {[%emt 0:00:04] KN-KP} 38. c5 {[%emt 0:00:26]} Kf7 {[%emt 0:00:06]
} 39. b4 {[%emt 0:00:31]} Ke6 {[%emt 0:00:11]} 40. Kf2 {[%emt 0:00:28]} Kd5 {
[%emt 0:00:00]} 41. Ke2 {[%emt 0:30:38]} Nc4 {[%emt 0:30:18] ( -> ...Ne5)} 42.
h3 {[%emt 0:00:39]} f5 {[%emt 0:00:10] Black mates.} 43. Kd3 {[%emt 0:00:37]}
Ne5+ {[%emt 0:00:05]} 44. Kc3 {[%emt 0:01:21]} h5 {[%emt 0:00:38]} 45. Kd2 {
[%emt 0:00:00]} Kc4 {[%emt 0:02:27]} 46. Ke3 {[%emt 0:03:18]} Kxb4 {[%emt 0:01:
54]} 47. c6 {[%emt 0:02:12]} Nxc6 {[%emt 0:01:41]} 48. h4 {[%emt 0:00:13]} f4+
{[%emt 0:00:00]} 49. gxf4 {[%emt 0:02:04]} g4 {[%emt 0:00:07]} 50. f5 {[%emt 0:
00:45]} Ne7 {[%emt 0:00:17]} ({Inferior is} 50... g3 51. Kf3 $11) 51. Kd4 {
[%emt 0:00:00] Weighted Error Value: White=0.85/Black=0.11 (very precise)} 0-1

[Event "44th Chess Olympiad Open 2022"]
[Site "Chennai"]
[Date "2022.07.29"]
[Round "1.17"]
[White "Brkic, Ante"]
[Black "Abera, Aydagnuhem Gezachew"]
[Result "1-0"]
[WhiteElo "2611"]
[BlackElo "2137"]
[Annotator "TA"]
[PlyCount "47"]
[EventDate "2022.??.??"]
[TimeControl "60"]

{[%evp 9,47,15,16,0,0,0,0,0,0,0,0,0,27,43,163,160,159,161,154,181,573,571,821,
811,820,820,818,808,802,779,787,779,768,763,947,889,1275,1235,1257,1170]} 1. e4
{[%emt 0:00:04]} e5 {[%emt 0:00:17]} 2. Nf3 {[%emt 0:00:07]} Nc6 {[%emt 0:00:
00]} 3. Bb5 {[%emt 0:00:41]} Nf6 {[%emt 0:00:24]} 4. O-O {[%emt 0:01:19]} Nxe4
{[%emt 0:00:33]} 5. Re1 {[%emt 0:00:45]} Nd6 {[%emt 0:00:36]} 6. a4 {[%emt 0:
00:00] C67: Ruy Lopez: Berlin Defence: 4 0-0 Nxe4.} Be7 {[%emt 0:00:44]} 7. Nc3
{[%emt 0:00:50] Inhibits e4.} O-O {[%emt 0:00:42]} 8. d4 {[%emt 0:00:24] The
position is equal.} Nxd4 {[%emt 0:07:18]} 9. Nxd4 {[%emt 0:01:05]} ({Don't play
} 9. Rxe5 Ne6 $15) 9... exd4 {[%emt 0:01:27]} 10. Nd5 {[%emt 0:00:19]} Bf6 {
[%emt 0:02:08]} (10... Bh4 $5 {[%cal Rc7c6]}) 11. Bd3 {[%emt 0:22:47] [#] Qg4
is the strong threat.} c6 {[%emt 0:16:08]} (11... Re8 $1 $14) 12. Qh5 $36 {
[%emt 0:12:09][%csl Gd3][%cal Rh5h7] Keeping Black busy.} g6 {[%emt 0:02:58]}
13. Nxf6+ {[%emt 0:00:18]} Qxf6 {[%emt 0:00:33]} 14. Qh6 {[%emt 0:08:51] [#]
aiming for Bf4. White is much more active. The black rooks are badly placed.}
Nf5 $146 {[%emt 0:04:03]} (14... Qg7 {is tougher.} 15. Qh4 h5) ({Predecessor:} 
14... Re8 15. Bf4 Re7 16. Kf1 b6 17. Rxe7 Qxe7 18. Re1 Qd8 19. Bxd6 Bb7 20. Re4
{1-0 (20) Osmanodja,F (2348)-Aghabekian,L (2188) Batumi 2018}) 15. Bxf5 {
[%emt 0:00:47] Pin. White is clearly winning.} d5 {[%emt 0:02:30] [#]} 16.
Qxf8+ $3 {[%emt 0:01:15]} Kxf8 {[%emt 0:00:00]} 17. Bh6+ {[%emt 0:00:05]} Qg7 {
[%emt 0:00:24]} 18. Bxg7+ {[%emt 0:00:11]} Kxg7 {[%emt 0:00:09]} 19. Bxc8 {
[%emt 0:00:08]} Rxc8 {[%emt 0:00:10]} 20. Re7 {[%emt 0:00:17]} Rb8 {[%emt 0:02:
59]} 21. Rd1 {[%emt 0:01:16]} b5 {[%emt 0:00:00]} 22. a5 {[%emt 0:00:21]} c5 {
[%emt 0:01:25]} 23. Rxa7 {[%emt 0:00:31]} Re8 {[%emt 0:00:32]} 24. Kf1 {
[%emt 0:00:39] Black got outplayed after the opening. Weighted Error Value:
White=0.01 (flawless) /Black=0.66} 1-0

[Event "44th Chess Olympiad Open 2022"]
[Site "Chennai"]
[Date "2022.07.29"]
[Round "1.17"]
[White "Bosiocic, Marin"]
[Black "Tsige, Addisalem Temesgen"]
[Result "1-0"]
[WhiteElo "2549"]
[BlackElo "2072"]
[Annotator "ChessBase"]
[PlyCount "75"]
[EventDate "2022.??.??"]
[TimeControl "60"]

1. e4 {[%emt 0:00:19]} c5 {[%emt 0:00:36]} 2. Nf3 {[%emt 0:00:12]} Nc6 {
[%emt 0:00:25]} 3. Bb5 {[%emt 0:00:14]} Nd4 {[%emt 0:03:05]} 4. Nxd4 {[%emt 0:
00:00]} cxd4 {[%emt 0:00:12]} 5. c3 {[%emt 0:00:35]} Qb6 {[%emt 0:05:32]} 6.
Qa4 {[%emt 0:01:05]} g6 {[%emt 0:03:23]} 7. cxd4 {[%emt 0:03:32]} Bg7 {[%emt 0:
00:00]} 8. d5 {[%emt 0:02:16]} a6 {[%emt 0:11:21]} 9. Na3 {[%emt 0:02:06]} Rb8
{[%emt 0:00:42]} 10. Be2 {[%emt 0:01:24]} Qc7 {[%emt 0:02:50]} 11. Qc4 {
[%emt 0:04:56]} Qe5 {[%emt 0:07:38]} 12. d3 {[%emt 0:02:31]} b5 {[%emt 0:10:54]
} 13. Qc5 {[%emt 0:01:15]} e6 {[%emt 0:04:21]} 14. f4 {[%emt 0:02:35]} Qd4 {
[%emt 0:02:35]} 15. Qxd4 {[%emt 0:00:32]} Bxd4 {[%emt 0:00:12]} 16. Nc2 {
[%emt 0:01:08]} Bg7 {[%emt 0:01:29]} 17. d6 {[%emt 0:00:33]} Bb7 {[%emt 0:00:
00]} 18. a4 {[%emt 0:01:07]} Rc8 {[%emt 0:05:51]} 19. Kd1 {[%emt 0:01:21]} f5 {
[%emt 0:05:33]} 20. e5 {[%emt 0:00:31]} Bxg2 {[%emt 0:04:55]} 21. Rg1 {[%emt 0:
00:00]} Bd5 {[%emt 0:01:01]} 22. Nd4 {[%emt 0:00:19]} b4 {[%emt 0:04:01]} 23.
Bf3 {[%emt 0:00:46]} Bxf3+ {[%emt 0:00:50]} 24. Nxf3 {[%emt 0:00:05]} Nh6 {
[%emt 0:00:27]} 25. Bd2 {[%emt 0:01:13]} a5 {[%emt 0:01:07]} 26. Ke2 {[%emt 0:
00:00]} O-O {[%emt 0:02:39]} 27. Rac1 {[%emt 0:00:08]} Nf7 {[%emt 0:00:30]} 28.
d4 {[%emt 0:00:20]} Bh6 {[%emt 0:00:42]} 29. h4 {[%emt 0:00:45]} Bg7 {[%emt 0:
00:00]} 30. Kd3 {[%emt 0:01:34]} Nh6 {[%emt 0:00:16]} 31. Rxc8 {[%emt 0:01:09]}
Rxc8 {[%emt 0:00:07]} 32. Rc1 {[%emt 0:00:14]} Rxc1 {[%emt 0:00:11]} 33. Bxc1 {
[%emt 0:00:06]} Ng4 {[%emt 0:00:13]} 34. Kc4 {[%emt 0:00:44]} Nf2 {[%emt 0:00:
00]} 35. Bd2 {[%emt 0:00:59]} Ne4 {[%emt 0:01:22]} 36. Bxb4 {[%emt 0:00:53]}
axb4 {[%emt 0:01:17]} 37. a5 {[%emt 0:00:05]} Bf8 {[%emt 0:00:19]} 38. a6 {
[%emt 0:00:09]} 1-0

[Event "44th Chess Olympiad Open 2022"]
[Site "Chennai"]
[Date "2022.07.29"]
[Round "1.17"]
[White "Jimma, Desalegn Fekadu"]
[Black "Saric, Ivan"]
[Result "0-1"]
[WhiteElo "2112"]
[BlackElo "2680"]
[Annotator "TA"]
[PlyCount "65"]
[EventDate "2022.??.??"]
[TimeControl "60"]

{[%evp 9,65,-6,-13,-12,0,-5,-15,-17,-2,-11,-9,-3,23,10,0,-24,-11,-64,-64,-70,
-59,-107,-104,-105,-104,-99,-103,-109,-81,-97,-88,-106,-96,-89,-99,-93,-81,-81,
-80,-211,-168,-172,-172,-199,-169,-160,-160,-197,-197,-283,-266,-389,-317,-292,
-276,-540,-544,-722]} 1. d4 {[%emt 0:00:05]} d6 {[%emt 0:00:04]} 2. c4 {
[%emt 0:00:10]} e5 {[%emt 0:00:07]} 3. Nc3 {[%emt 0:00:50]} exd4 {[%emt 0:00:
00]} 4. Qxd4 {[%emt 0:00:22]} Nc6 {[%emt 0:00:05]} 5. Qd1 {[%emt 0:00:20]} Nf6
{[%emt 0:02:29]} 6. Bg5 {[%emt 0:01:40] A21: English Opening: 1...e5 2 Nc3.} h6
{[%emt 0:01:25] [#]} 7. Bxf6 $146 {[%emt 0:10:02]} ({Predecessor:} 7. Bh4 g5 8.
Bg3 Nh5 9. e3 Nxg3 10. hxg3 Bg7 11. Be2 Be6 12. Nf3 Bxc3+ 13. bxc3 Qf6 {
0-1 (21) Lazkano Gaite,T (1642)-Cifuentes Parada,R (2465) San Sebastian 2018})
7... Qxf6 {[%emt 0:00:17]} 8. e3 {[%emt 0:00:41] The position is equal.} Be6 {
[%emt 0:02:41]} 9. Nf3 {[%emt 0:00:45]} O-O-O {[%emt 0:01:47][%cal Yd6d5]} 10.
Qb3 {[%emt 0:06:21]} Ne5 {[%emt 0:19:51]} 11. Be2 {[%emt 0:02:52]} Qg6 {
[%emt 0:05:23]} 12. Nxe5 {[%emt 0:05:50]} dxe5 {[%emt 0:00:05]} 13. Bf3 {
[%emt 0:01:04]} (13. O-O $1 $11) 13... c6 $15 {[%emt 0:00:04] Active counter
play!} 14. O-O {[%emt 0:06:11]} f5 {[%emt 0:00:35]} (14... Be7 {feels hotter.}
15. Rfd1 f5 16. Qa4 Kb8) 15. Qa4 {[%emt 0:04:29]} (15. Rfd1 $15 Rxd1+ 16. Rxd1)
15... e4 $17 {[%emt 0:00:19]} 16. Be2 {[%emt 0:00:13] [#]} Kb8 {[%emt 0:05:46]}
17. Rfd1 {[%emt 0:02:19]} Bd6 {[%emt 0:00:34]} 18. b4 {[%emt 0:04:17]} Be5 {
[%emt 0:03:25]} 19. Qc2 {[%emt 0:19:59]} Qf6 {[%emt 0:02:16]} 20. Rxd8+ {
[%emt 0:03:21]} Rxd8 {[%emt 0:00:02]} 21. Rd1 {[%emt 0:00:34]} Rxd1+ $40 {
[%emt 0:02:28] Black has strong attack.} 22. Nxd1 {[%emt 0:00:09]} g5 {[%emt 0:
01:19][%cal Yg7g5,Yg5g4]} 23. g3 {[%emt 0:09:39]} Bf7 {[%emt 0:03:14]} 24. f3 {
[%emt 0:03:28] Loses the game.} (24. a4 $17 {keeps fighting.}) 24... exf3 {
[%emt 0:00:38]} 25. Bxf3 {[%emt 0:00:08]} h5 {[%emt 0:00:00]} 26. Nf2 {[%emt 0:
02:43]} g4 {[%emt 0:00:20]} 27. Be2 {[%emt 0:05:05]} h4 {[%emt 0:00:15]} 28.
Nh1 {[%emt 0:00:44]} Bd6 {[%emt 0:02:22] This bishop pair is nice.} 29. c5 {
[%emt 0:06:04]} (29. Qd2 {is a better defense.}) 29... Bc7 $19 {[%emt 0:00:30]}
30. gxh4 {[%emt 0:01:48]} (30. Bf1 $142) 30... Qxh4 {[%emt 0:06:38]} 31. Bf1 {
[%emt 0:00:34]} Qh6 {[%emt 0:01:57]} 32. Qf2 {[%emt 0:00:00] [#]} (32. Qd2)
32... f4 {[%emt 0:00:07][%cal Yf4e3]} 33. exf4 {[%emt 0:00:00] Weighted Error
Value: White=0.35/Black=0.10 (very precise)} 0-1

[Event "44th Chess Olympiad Open 2022"]
[Site "Chennai"]
[Date "2022.07.29"]
[Round "1.17"]
[White "Gole, Habtamu Ashenafi"]
[Black "Kozul, Zdenko"]
[Result "0-1"]
[WhiteElo "2044"]
[BlackElo "2602"]
[Annotator "TA"]
[PlyCount "92"]
[EventDate "2022.??.??"]
[TimeControl "60"]

{[%evp 17,92,-13,-12,-16,0,-29,-29,-104,-88,-93,-77,-75,-70,-88,-48,-193,-192,
-190,-169,-251,-185,-329,-307,-413,-418,-400,-414,-388,-354,-439,-419,-352,
-352,-345,-307,-289,-268,-374,-369,-368,-395,-379,-379,-488,-511,-571,-566,
-559,-531,-566,-552,-583,-577,-800,-789,-810,-804,-1240,-1120,-1165,-1118,
-1405,-1401,-1361,-1132,-1196,-1244,-1205,-1131,-12838,-12838,-12838,-12839,
-12839,-12838,-12828,-12822]} 1. e4 {[%emt 0:00:07]} c5 {[%emt 0:00:12]} 2. Nf3
{[%emt 0:00:11]} d6 {[%emt 0:00:28]} 3. d3 {[%emt 0:00:15]} Nc6 {[%emt 0:02:18]
} 4. g3 {[%emt 0:02:27]} g6 {[%emt 0:03:54]} 5. Bg2 {[%emt 0:01:10]} Bg7 {
[%emt 0:00:06]} 6. O-O {[%emt 0:00:36]} Nf6 {[%emt 0:04:00]} 7. c3 {[%emt 0:00:
00]} O-O {[%emt 0:00:46]} 8. Re1 {[%emt 0:01:40]} e5 {[%emt 0:04:36]} 9. Nbd2 {
[%emt 0:05:25] Recently 9.a4 got a lot of attention.} Re8 {[%emt 0:06:28]} 10.
h3 {[%emt 0:00:40] [#] A05: Réti Opening: 1 Nf3 Nf6.} d5 $146 {[%emt 0:00:59]}
({Predecessor:} 10... Rb8 11. a3 b5 12. Nf1 a5 13. Bg5 h6 14. Bxf6 Bxf6 15. Ne3
Bg7 16. a4 b4 17. Nd2 Be6 18. Ndc4 Ne7 19. g4 Bf6 20. Nd5 Nxd5 21. exd5 Bc8 {
½-½ (21) Shalamberidze,A (2392)-Hakobyan,H (2220) Batumi 2017}) 11. Qc2 {
[%emt 0:03:11]} d4 {[%emt 0:00:57]} 12. c4 {[%emt 0:00:32]} (12. a4 $11) 12...
Be6 {[%emt 0:01:43]} 13. a3 {[%emt 0:00:57][%cal Yb2b4]} Nd7 {[%emt 0:00:24]}
14. Nf1 {[%emt 0:04:34]} f6 {[%emt 0:01:04] Prevents Ng5.} 15. Rb1 {[%emt 0:00:
00]} Qb8 {[%emt 0:04:32]} 16. b4 {[%emt 0:07:16]} (16. Nh4 $15) 16... cxb4 $19
{[%emt 0:00:26]} 17. axb4 {[%emt 0:00:02]} b5 {[%emt 0:00:10]} 18. N1d2 {
[%emt 0:05:11]} (18. Bd2 $142) 18... Rc8 {[%emt 0:02:30] Strongly threatening .
..Bf8.} 19. c5 {[%emt 0:08:03]} (19. Ba3 $142) 19... Bf8 {[%emt 0:01:30]} 20.
Nh4 {[%emt 0:06:00]} a5 {[%emt 0:01:23]} 21. bxa5 {[%emt 0:00:42]} Nxc5 {
[%emt 0:01:37]} 22. f4 {[%emt 0:06:03]} Bf7 {[%emt 0:06:16]} 23. Bf1 {[%emt 0:
00:00]} Rxa5 {[%emt 0:01:27] ...Ra2 is the strong threat.} 24. Qd1 {[%emt 0:00:
00]} exf4 {[%emt 0:06:06]} 25. Nc4 {[%emt 0:02:34]} Ra7 {[%emt 0:02:09]} ({
Inferior is} 25... fxg3 26. Nxa5 Nxa5 27. Qf3 $17) 26. Bxf4 {[%emt 0:00:23]}
Ne5 {[%emt 0:01:10]} 27. Bxe5 {[%emt 0:02:24]} fxe5 {[%emt 0:00:06]} 28. Nf3 {
[%emt 0:04:19]} Bxc4 {[%emt 0:00:10]} 29. dxc4 {[%emt 0:00:15]} b4 {[%emt 0:00:
00][%cal Yb5b4,Yb4b3]} 30. Rb2 {[%emt 0:02:40]} Bh6 {[%emt 0:01:13] Black is
clearly winning.} 31. Nh4 {[%emt 0:01:53]} b3 {[%emt 0:02:04]} 32. Qg4 {
[%emt 0:00:57]} Rc6 {[%emt 0:00:45]} 33. Nf5 {[%emt 0:01:01]} Bf8 {[%emt 0:00:
00]} 34. Nh4 {[%emt 0:07:20]} Qb4 {[%emt 0:02:07]} 35. Reb1 {[%emt 0:01:52]}
Qc3 {[%emt 0:00:19]} 36. Rf2 {[%emt 0:02:35]} Ra2 {[%emt 0:01:03]} 37. Qf3 {
[%emt 0:02:54]} Rxf2 {[%emt 0:01:34] Active counter play!} 38. Qxf2 {[%emt 0:
00:00]} Bh6 {[%emt 0:00:16] [#] aiming for ...Be3.} 39. Qf3 {[%emt 0:02:17]}
Ra6 {[%emt 0:05:39]} 40. Qg4 {[%emt 0:00:23]} Bf8 {[%emt 0:01:35]} 41. Qg5 {
[%emt 0:32:52]} d3 {[%emt 0:38:14] White must now prevent ...d2.} 42. Nf3 {
[%emt 0:00:30]} Nxe4 {[%emt 0:01:35]} 43. Qxe5 {[%emt 0:00:22]} Bc5+ {[%emt 0:
00:00]} 44. Kh1 {[%emt 0:00:16]} Qxe5 {[%emt 0:03:15]} 45. Nxe5 {[%emt 0:00:03]
} Ra2 {[%emt 0:00:24][%cal Re4g3] [#]} 46. Bg2 {[%emt 0:00:45]} Nf2+ {[%emt 0:
00:00] Black took control after the opening. Weighted Error Value: White=0.85/
Black=0.12 (very precise)} 0-1

[Event "44th Chess Olympiad Open 2022"]
[Site "Chennai"]
[Date "2022.07.29"]
[Round "1.18"]
[White "Navara, David"]
[Black "Gerena Rivas, Eliam"]
[Result "1-0"]
[WhiteElo "2688"]
[BlackElo "2102"]
[Annotator "ChessBase"]
[PlyCount "110"]
[EventDate "2022.??.??"]
[TimeControl "60"]

1. e4 {[%emt 0:00:01]} e6 {[%emt 0:00:22]} 2. d4 {[%emt 0:00:05]} d5 {[%emt 0:
00:00]} 3. Nd2 {[%emt 0:00:06]} c5 {[%emt 0:00:40]} 4. Ngf3 {[%emt 0:00:14]}
cxd4 {[%emt 0:00:33]} 5. Nxd4 {[%emt 0:00:22]} Nc6 {[%emt 0:00:45]} 6. Bb5 {
[%emt 0:00:11]} Bd7 {[%emt 0:01:55]} 7. Nxc6 {[%emt 0:00:09]} bxc6 {[%emt 0:00:
00]} 8. Bd3 {[%emt 0:00:06]} Bc5 {[%emt 0:06:08]} 9. O-O {[%emt 0:06:20]} Ne7 {
[%emt 0:10:05]} 10. Qh5 {[%emt 0:03:01]} Ng6 {[%emt 0:10:27]} 11. Nf3 {[%emt 0:
00:00]} Qc7 {[%emt 0:09:25]} 12. e5 {[%emt 0:14:52]} Be7 {[%emt 0:03:50]} 13.
Re1 {[%emt 0:04:29]} c5 {[%emt 0:08:46]} 14. Bg5 {[%emt 0:14:00]} Bc6 {[%emt 0:
00:00]} 15. Bxg6 {[%emt 0:02:42]} fxg6 {[%emt 0:00:13]} 16. Qg4 {[%emt 0:00:16]
} Qd7 {[%emt 0:07:06]} 17. Bxe7 {[%emt 0:00:22]} Qxe7 {[%emt 0:00:41]} 18. Ng5
{[%emt 0:00:33]} Kd7 {[%emt 0:06:01]} 19. c4 {[%emt 0:06:17]} h6 {[%emt 0:00:
00]} 20. cxd5 {[%emt 0:00:41]} Bxd5 {[%emt 0:00:49]} 21. Red1 {[%emt 0:06:35]}
Qxg5 {[%emt 0:02:51]} 22. Rxd5+ {[%emt 0:00:12]} Ke7 {[%emt 0:00:14]} 23. Qxg5+
{[%emt 0:00:13]} hxg5 {[%emt 0:00:07]} 24. Rxc5 {[%emt 0:00:08]} Rhc8 {[%emt 0:
00:00]} 25. Rac1 {[%emt 0:01:08]} Rxc5 {[%emt 0:01:12]} 26. Rxc5 {[%emt 0:00:
00]} Rd8 {[%emt 0:00:45]} 27. g3 {[%emt 0:01:08]} Rd2 {[%emt 0:01:40]} 28. Rc7+
{[%emt 0:00:50]} Kf8 {[%emt 0:00:37]} 29. Rb7 {[%emt 0:00:08]} g4 {[%emt 0:00:
00]} 30. a3 {[%emt 0:08:03]} a5 {[%emt 0:01:08]} 31. Rb5 {[%emt 0:00:47]} a4 {
[%emt 0:01:05]} 32. Rb4 {[%emt 0:00:13]} Kf7 {[%emt 0:02:11]} 33. Rf4+ {
[%emt 0:00:27]} Ke7 {[%emt 0:00:19]} 34. Rxg4 {[%emt 0:03:37]} Rxb2 {[%emt 0:
00:00]} 35. Rxg6 {[%emt 0:00:13]} Kf7 {[%emt 0:00:31]} 36. Rg4 {[%emt 0:00:04]}
Re2 {[%emt 0:00:26]} 37. Rxa4 {[%emt 0:02:13]} Rxe5 {[%emt 0:00:09]} 38. h4 {
[%emt 0:01:13]} g6 {[%emt 0:00:36]} 39. Kg2 {[%emt 0:00:28]} Re2 {[%emt 0:00:
00]} 40. Kf3 {[%emt 0:03:45]} Ra2 {[%emt 0:00:14]} 41. g4 {[%emt 0:30:21]} Kf6
{[%emt 0:31:00]} 42. Ra5 {[%emt 0:05:11]} Rc2 {[%emt 0:02:23]} 43. g5+ {
[%emt 0:00:15]} Ke7 {[%emt 0:00:17]} 44. Ra7+ {[%emt 0:00:13]} Kd6 {[%emt 0:00:
00]} 45. Rg7 {[%emt 0:00:28]} Rc3+ {[%emt 0:00:15]} 46. Kg4 {[%emt 0:00:13]}
Rxa3 {[%emt 0:00:56]} 47. Rxg6 {[%emt 0:00:06]} Ra4+ {[%emt 0:00:20]} 48. f4 {
[%emt 0:01:47]} Kd5 {[%emt 0:00:24]} 49. Rf6 {[%emt 0:00:44]} Ra1 {[%emt 0:00:
00]} 50. Kh5 {[%emt 0:01:11]} Rh1 {[%emt 0:00:23]} 51. g6 {[%emt 0:00:13]} Rg1
{[%emt 0:01:35]} 52. f5 {[%emt 0:00:31]} exf5 {[%emt 0:00:21]} 53. Rxf5+ {
[%emt 0:00:05]} Ke6 {[%emt 0:00:18]} 54. Rg5 {[%emt 0:00:07]} Rxg5+ {[%emt 0:
00:00]} 55. hxg5 {[%emt 0:00:09]} Kd5 {[%emt 0:00:42]} 1-0